[Event "23rd ETCC Women 2021"]
[Site "Catez"]
[Date "2021.11.19"]
[Round "7.55"]
[White "Nikolovska, Dragana"]
[Black "Machlik, Edit"]
[Result "1/2-1/2"]
[ECO "B12"]
[WhiteElo "1877"]
[BlackElo "2087"]
[Annotator "ChessBase"]
[PlyCount "101"]
[EventDate "2021.11.08"]
[EventType "team-tourn"]
[EventCountry "SLO"]
[SourceTitle "playchess.com"]
[Source "ChessBase"]
[SourceQuality "1"]
[WhiteTeam "Macedonia"]
[BlackTeam "Norway"]
[WhiteTeamCountry "MKD"]
[BlackTeamCountry "NOR"]
[TimeControl "40/5400+30:1800+30"]

1. e4 {[%emt 0:00:04]} c6 {[%emt 0:00:04]} 2. d4 {[%emt 0:00:09]} d5 {[%emt 0:
00:07]} 3. e5 {[%emt 0:00:10]} Bf5 {[%emt 0:00:32]} 4. h4 {[%emt 0:00:19]} h5 {
[%emt 0:02:12]} 5. Bg5 {[%emt 0:00:20]} Qb6 {[%emt 0:03:34]} 6. Bd3 {[%emt 0:
00:47]} Bxd3 {[%emt 0:01:27]} 7. Qxd3 {[%emt 0:00:07]} e6 {[%emt 0:02:14]} 8.
Nd2 {[%emt 0:01:44]} Ne7 {[%emt 0:05:34]} 9. Ngf3 {[%emt 0:02:34]} Qa6 {
[%emt 0:01:16]} 10. c4 {[%emt 0:00:42]} Nf5 {[%emt 0:13:14]} 11. O-O {[%emt 0:
03:36]} Nd7 {[%emt 0:09:14]} 12. Qc3 {[%emt 0:11:17]} dxc4 {[%emt 0:10:32]} 13.
Nxc4 {[%emt 0:07:08]} Nb6 {[%emt 0:02:29]} 14. Nxb6 {[%emt 0:23:59]} axb6 {
[%emt 0:08:23]} 15. Rfd1 {[%emt 0:11:46]} Qa5 {[%emt 0:02:01]} 16. Qb3 {
[%emt 0:07:46]} Qb4 {[%emt 0:00:00]} 17. Qc2 {[%emt 0:00:48]} Qa4 {[%emt 0:14:
42]} 18. Qe4 {[%emt 0:02:57]} Ra5 {[%emt 0:05:12]} 19. Rac1 {[%emt 0:04:35]}
Rd5 {[%emt 0:00:56]} 20. g3 {[%emt 0:15:12]} b5 {[%emt 0:01:02]} 21. Kg2 {
[%emt 0:01:01]} Be7 {[%emt 0:09:04]} 22. Bxe7 {[%emt 0:01:01]} Kxe7 {[%emt 0:
01:15]} 23. Qf4 {[%emt 0:00:26]} Ke8 {[%emt 0:02:36]} 24. Rd3 {[%emt 0:03:24]}
Qa5 {[%emt 0:02:15]} 25. Ra3 {[%emt 0:00:25]} Qd8 {[%emt 0:00:04]} 26. Rd1 {
[%emt 0:00:37]} Rh6 {[%emt 0:01:57]} 27. Ra7 {[%emt 0:00:30]} Qb8 {[%emt 0:00:
18]} 28. Ra5 {[%emt 0:00:11]} Qd8 {[%emt 0:00:57]} 29. Qd2 {[%emt 0:00:28]} Rg6
{[%emt 0:00:35]} 30. Kh3 {[%emt 0:00:47]} Rg4 {[%emt 0:00:21]} 31. Qb4 {
[%emt 0:00:33]} Qe7 {[%emt 0:00:28]} 32. Ra8+ {[%emt 0:00:24]} Rd8 {[%emt 0:00:
04]} 33. Qa5 {[%emt 0:00:22]} Qd7 {[%emt 0:01:03]} 34. Rd3 {[%emt 0:00:47]} Ne7
{[%emt 0:01:02]} 35. Ra3 {[%emt 0:00:30]} Nc8 {[%emt 0:00:31]} 36. Qb4 {
[%emt 0:00:29]} Qe7 {[%emt 0:00:32]} 37. Qe1 {[%emt 0:00:33]} Nb6 {[%emt 0:00:
33]} 38. Rxd8+ {[%emt 0:00:22]} Qxd8 {[%emt 0:00:29]} 39. Ra7 {[%emt 0:00:13]}
Qd7 {[%emt 0:00:32]} 40. Qa5 {[%emt 0:00:47]} Nc8 {[%emt 0:00:37]} 41. Ra8 {
[%emt 0:06:28]} Qd8 {[%emt 0:14:06]} 42. Qa3 {[%emt 0:00:41]} Qc7 {[%emt 0:01:
47]} 43. Qe3 {[%emt 0:12:27]} Kd7 {[%emt 0:08:33]} 44. Ng5 {[%emt 0:00:45]} Ne7
{[%emt 0:01:14]} 45. Rf8 {[%emt 0:01:58]} Qb6 {[%emt 0:01:06]} 46. Qa3 {
[%emt 0:03:29]} Qxd4 {[%emt 0:02:37]} 47. Qa8 {[%emt 0:00:31]} Rxg3+ {[%emt 0:
02:16]} 48. fxg3 {[%emt 0:05:49]} Qg4+ {[%emt 0:00:06]} 49. Kg2 {[%emt 0:00:03]
} Qe2+ {[%emt 0:00:06]} 50. Kh3 {[%emt 0:00:04]} Qg4+ {[%emt 0:00:25]} 51. Kg2
{[%emt 0:00:04]} 1/2-1/2

[Event "23rd ETCC Women 2021"]
[Site "Catez"]
[Date "2021.11.19"]
[Round "7.56"]
[White "Rodsmoen, Maud"]
[Black "Manova, Ivana"]
[Result "0-1"]
[ECO "C25"]
[WhiteElo "1953"]
[BlackElo "1809"]
[Annotator "NA"]
[PlyCount "64"]
[EventDate "2021.11.08"]
[EventType "team-tourn"]
[EventCountry "SLO"]
[SourceTitle "playchess.com"]
[Source "ChessBase"]
[SourceQuality "1"]
[WhiteTeam "Norway"]
[BlackTeam "Macedonia"]
[WhiteTeamCountry "NOR"]
[BlackTeamCountry "MKD"]
[TimeControl "40/5400+30:1800+30"]

1. e4 {[%emt 0:00:02]} e5 {[%emt 0:00:14]} 2. Nc3 {[%emt 0:00:05]} Nc6 {
[%emt 0:02:04]} 3. Bc4 {[%emt 0:00:55]} Bc5 {[%emt 0:07:28]} 4. Qg4 {[%emt 0:
02:27]} Qf6 {[%emt 0:17:42]} 5. Nd5 {[%emt 0:02:24]} Qxf2+ {[%emt 0:23:49]} 6.
Kd1 {[%emt 0:00:10]} d6 {[%emt 0:06:13]} 7. Qxg7 {[%emt 0:13:06]} h5 {[%emt 0:
05:04]} 8. Qxh8 {[%emt 0:38:45]} Bg4+ {[%emt 0:00:08]} 9. Ne2 {[%emt 0:00:35]}
O-O-O {[%emt 0:05:45]} 10. Ne3 {[%emt 0:08:01]} Bxe3 {[%emt 0:05:27]} 11. dxe3
{[%emt 0:00:03]} Nf6 {[%emt 0:01:43]} 12. Qh6 {[%emt 0:03:35]} d5 {[%emt 0:06:
45]} 13. exd5 {[%emt 0:05:52]} Rxd5+ {[%emt 0:01:02]} 14. Bd2 {[%emt 0:00:36]}
Bxe2+ {[%emt 0:01:25]} 15. Bxe2 {[%emt 0:02:48]} Ne4 {[%emt 0:00:19]} 16. Kc1 {
[%emt 0:03:31]} Qxe2 {[%emt 0:03:08]} 17. Bc3 {[%emt 0:07:45]} Nf2 {[%emt 0:00:
29]} 18. Qf8+ {[%emt 0:01:16]} Rd8 {[%emt 0:00:42]} 19. Re1 {[%emt 0:01:39]}
Qg4 {[%emt 0:02:14]} 20. h3 {[%emt 0:00:41]} Qd7 {[%emt 0:00:22]} 21. Qxd8+ {
[%emt 0:00:21]} Nxd8 {[%emt 0:02:17]} 22. Bxe5 {[%emt 0:01:11]} Nc6 {[%emt 0:
01:03]} 23. Bf4 {[%emt 0:01:15]} Nb4 {[%emt 0:01:45]} 24. a3 {[%emt 0:02:21]}
Nd5 {[%emt 0:00:18]} 25. Bg3 {[%emt 0:01:48]} Ne4 {[%emt 0:00:42]} 26. Bh4 {
[%emt 0:00:55]} Nxe3 {[%emt 0:00:34]} 27. Kb1 {[%emt 0:00:46]} Qd2 {[%emt 0:01:
23]} 28. Ka2 {[%emt 0:00:37]} Qd5+ {[%emt 0:01:09]} 29. b3 {[%emt 0:00:37]}
Nc3+ {[%emt 0:00:23]} 30. Kb2 {[%emt 0:00:26]} Qd4 {[%emt 0:01:18]} 31. Bf6 {
[%emt 0:00:40]} Qxf6 {[%emt 0:00:35]} 32. Rxe3 {[%emt 0:00:37]} Nd1+ {[%emt 0:
00:09]} 0-1

[Event "23rd ETCC Women 2021"]
[Site "Catez"]
[Date "2021.11.19"]
[Round "7.57"]
[White "Ptacnikova, Lenka"]
[Black "Toma, Katarzyna"]
[Result "0-1"]
[ECO "A11"]
[WhiteElo "2200"]
[BlackElo "2261"]
[Annotator "NA"]
[PlyCount "86"]
[EventDate "2021.11.08"]
[EventType "team-tourn"]
[EventCountry "SLO"]
[SourceTitle "playchess.com"]
[Source "ChessBase"]
[SourceQuality "1"]
[WhiteTeam "Iceland"]
[BlackTeam "England"]
[WhiteTeamCountry "ISL"]
[BlackTeamCountry "ENG"]
[TimeControl "40/5400+30:1800+30"]

1. Nf3 {[%emt 0:00:02]} Nf6 {[%emt 0:00:10]} 2. g3 {[%emt 0:00:10]} d5 {
[%emt 0:00:59]} 3. Bg2 {[%emt 0:00:25]} Bf5 {[%emt 0:00:43]} 4. c4 {[%emt 0:01:
22]} c6 {[%emt 0:01:16]} 5. Qb3 {[%emt 0:02:48]} Qc8 {[%emt 0:09:52]} 6. cxd5 {
[%emt 0:02:32]} cxd5 {[%emt 0:00:07]} 7. Nc3 {[%emt 0:00:25]} e6 {[%emt 0:01:
40]} 8. d3 {[%emt 0:03:30]} Nc6 {[%emt 0:05:14]} 9. O-O {[%emt 0:03:01]} Be7 {
[%emt 0:00:50]} 10. Bf4 {[%emt 0:04:41]} O-O {[%emt 0:00:58]} 11. Rac1 {
[%emt 0:00:49]} Nh5 {[%emt 0:21:28]} 12. Bg5 {[%emt 0:06:38]} Bxg5 {[%emt 0:07:
56]} 13. Nxg5 {[%emt 0:00:09]} Bg6 {[%emt 0:01:39]} 14. h4 {[%emt 0:07:53]} h6
{[%emt 0:01:55]} 15. Nf3 {[%emt 0:02:39]} Nf6 {[%emt 0:01:23]} 16. Na4 {
[%emt 0:07:55]} Qb8 {[%emt 0:04:58]} 17. Nc5 {[%emt 0:01:48]} b6 {[%emt 0:02:
30]} 18. Na6 {[%emt 0:06:20]} Qd6 {[%emt 0:00:17]} 19. Rc3 {[%emt 0:08:51]}
Rac8 {[%emt 0:01:40]} 20. Rfc1 {[%emt 0:00:36]} Bh5 {[%emt 0:04:12]} 21. Qa4 {
[%emt 0:05:23]} Ne7 {[%emt 0:00:22]} 22. Nc7 {[%emt 0:02:18]} a5 {[%emt 0:03:
10]} 23. Nd4 {[%emt 0:03:28]} e5 {[%emt 0:01:26]} 24. Ndb5 {[%emt 0:01:21]} Qd7
{[%emt 0:00:28]} 25. e3 {[%emt 0:03:27]} Rfd8 {[%emt 0:02:22]} 26. Qc2 {
[%emt 0:03:29]} Qf5 {[%emt 0:06:57]} 27. a4 {[%emt 0:11:20]} Bf3 {[%emt 0:05:
58]} 28. Bxf3 {[%emt 0:03:50]} Qxf3 {[%emt 0:00:05]} 29. Qd1 {[%emt 0:00:49]}
Qf5 {[%emt 0:00:24]} 30. Qe2 {[%emt 0:00:53]} g5 {[%emt 0:04:10]} 31. hxg5 {
[%emt 0:00:43]} hxg5 {[%emt 0:00:03]} 32. f4 {[%emt 0:03:07]} gxf4 {[%emt 0:01:
18]} 33. exf4 {[%emt 0:00:29]} e4 {[%emt 0:03:50]} 34. Nd4 {[%emt 0:01:08]} Qg6
{[%emt 0:00:05]} 35. Kg2 {[%emt 0:01:10]} Nf5 {[%emt 0:02:59]} 36. Nxf5 {
[%emt 0:00:46]} Qxf5 {[%emt 0:00:02]} 37. d4 {[%emt 0:00:55]} Kg7 {[%emt 0:02:
26]} 38. Rh1 {[%emt 0:01:07]} Rh8 {[%emt 0:00:19]} 39. Nb5 {[%emt 0:00:53]}
Rxh1 {[%emt 0:01:39]} 40. Kxh1 {[%emt 0:00:03]} Rh8+ {[%emt 0:00:05]} 41. Kg1 {
[%emt 0:30:03]} Qh3 {[%emt 0:31:22]} 42. Qg2 {[%emt 0:00:20]} Qg4 {[%emt 0:00:
00]} 43. Qf1 {[%emt 0:00:00]} Rh3 {[%emt 0:00:00]} 0-1

[Event "23rd ETCC Women 2021"]
[Site "Catez"]
[Date "2021.11.19"]
[Round "7.58"]
[White "Head, Louise"]
[Black "Thorsteinsdottir, Hallgerdur"]
[Result "1/2-1/2"]
[ECO "D80"]
[WhiteElo "2069"]
[BlackElo "2010"]
[Annotator "ChessBase"]
[PlyCount "115"]
[EventDate "2021.11.08"]
[EventType "team-tourn"]
[EventCountry "SLO"]
[SourceTitle "playchess.com"]
[Source "ChessBase"]
[SourceQuality "1"]
[WhiteTeam "England"]
[BlackTeam "Iceland"]
[WhiteTeamCountry "ENG"]
[BlackTeamCountry "ISL"]
[TimeControl "40/5400+30:1800+30"]

1. d4 {[%emt 0:00:03]} Nf6 {[%emt 0:00:09]} 2. c4 {[%emt 0:00:05]} g6 {[%emt 0:
00:10]} 3. Nc3 {[%emt 0:00:06]} d5 {[%emt 0:00:17]} 4. Bg5 {[%emt 0:00:20]} Ne4
{[%emt 0:00:46]} 5. Bf4 {[%emt 0:00:18]} Nxc3 {[%emt 0:00:43]} 6. bxc3 {
[%emt 0:00:10]} dxc4 {[%emt 0:00:47]} 7. Qa4+ {[%emt 0:02:48]} Nd7 {[%emt 0:05:
13]} 8. e3 {[%emt 0:04:49]} c6 {[%emt 0:02:10]} 9. Qxc4 {[%emt 0:03:44]} Nb6 {
[%emt 0:01:11]} 10. Qb3 {[%emt 0:06:07]} Be6 {[%emt 0:01:43]} 11. Qb2 {[%emt 0:
02:12]} Bg7 {[%emt 0:02:59]} 12. Bd3 {[%emt 0:14:43]} O-O {[%emt 0:03:02]} 13.
Nf3 {[%emt 0:08:42]} c5 {[%emt 0:09:50]} 14. O-O {[%emt 0:01:26]} Rc8 {[%emt 0:
07:07]} 15. a4 {[%emt 0:09:16]} a5 {[%emt 0:30:19]} 16. Bg3 {[%emt 0:08:56]} f6
{[%emt 0:08:55]} 17. Rfb1 {[%emt 0:03:00]} Nd5 {[%emt 0:05:26]} 18. e4 {
[%emt 0:12:22]} Nc7 {[%emt 0:02:39]} 19. Qb6 {[%emt 0:01:44]} Bg4 {[%emt 0:02:
17]} 20. Qxc5 {[%emt 0:04:21]} e5 {[%emt 0:03:29]} 21. Rxb7 {[%emt 0:10:54]}
Ne6 {[%emt 0:01:24]} 22. Qa3 {[%emt 0:01:33]} Bxf3 {[%emt 0:01:38]} 23. Qb3 {
[%emt 0:01:35]} Bg4 {[%emt 0:02:08]} 24. h3 {[%emt 0:00:36]} Kh8 {[%emt 0:00:
33]} 25. Bc4 {[%emt 0:01:44]} exd4 {[%emt 0:00:31]} 26. Bxe6 {[%emt 0:00:45]}
Bxe6 {[%emt 0:00:14]} 27. Qxe6 {[%emt 0:00:05]} dxc3 {[%emt 0:00:11]} 28. Rd7 {
[%emt 0:00:59]} Qe8 {[%emt 0:00:24]} 29. Qd5 {[%emt 0:00:11]} Bh6 {[%emt 0:01:
08]} 30. Qb7 {[%emt 0:00:59]} c2 {[%emt 0:02:29]} 31. Rxh7+ {[%emt 0:00:04]}
Kg8 {[%emt 0:00:04]} 32. Bf4 {[%emt 0:00:21]} g5 {[%emt 0:02:55]} 33. Rxh6 {
[%emt 0:00:07]} Rf7 {[%emt 0:00:18]} 34. Qb3 {[%emt 0:00:58]} gxf4 {[%emt 0:00:
14]} 35. Rc1 {[%emt 0:00:09]} Qxe4 {[%emt 0:00:51]} 36. Rxf6 {[%emt 0:00:34]}
Rc4 {[%emt 0:00:58]} 37. Rxf7 {[%emt 0:00:39]} Kxf7 {[%emt 0:00:03]} 38. Kf1 {
[%emt 0:01:06]} Kg6 {[%emt 0:01:41]} 39. Qb6+ {[%emt 0:00:40]} Rc6 {[%emt 0:00:
15]} 40. Qb5 {[%emt 0:00:26]} Rc4 {[%emt 0:01:14]} 41. Qb3 {[%emt 0:06:09]} Qc6
{[%emt 0:03:31]} 42. Qd3+ {[%emt 0:02:43]} Kg5 {[%emt 0:01:03]} 43. Qb3 {
[%emt 0:06:55]} Kh6 {[%emt 0:08:03]} 44. Qd3 {[%emt 0:00:37]} Qc5 {[%emt 0:03:
41]} 45. Kg1 {[%emt 0:05:28]} Kg5 {[%emt 0:06:19]} 46. Kh2 {[%emt 0:02:19]} Rc3
{[%emt 0:00:46]} 47. h4+ {[%emt 0:08:07]} Kxh4 {[%emt 0:04:02]} 48. Qg6 {
[%emt 0:00:00]} Qg5 {[%emt 0:03:41]} 49. Qh7+ {[%emt 0:00:00]} Qh5 {[%emt 0:00:
00]} 50. Qg7 {[%emt 0:00:00]} Qc5 {[%emt 0:02:16]} 51. Qh6+ {[%emt 0:00:00]}
Kg4 {[%emt 0:00:09]} 52. Qg6+ {[%emt 0:00:00]} Qg5 {[%emt 0:01:01]} 53. f3+ {
[%emt 0:00:06]} Kh4 {[%emt 0:00:05]} 54. Qh7+ {[%emt 0:01:27]} Qh5 {[%emt 0:00:
06]} 55. Qe7+ {[%emt 0:00:31]} Qg5 {[%emt 0:00:10]} 56. Qh7+ {[%emt 0:02:20]}
Qh5 {[%emt 0:00:04]} 57. Qe7+ {[%emt 0:01:58]} Qg5 {[%emt 0:00:11]} 58. Qh7+ {
[%emt 0:00:06]} 1/2-1/2

[Event "23rd ETCC Women 2021"]
[Site "Catez"]
[Date "2021.11.19"]
[Round "7.59"]
[White "Johannsdottir, Johanna Bjorg"]
[Black "Bayat, Shohreh"]
[Result "0-1"]
[ECO "C54"]
[WhiteElo "1952"]
[BlackElo "2091"]
[Annotator "NA"]
[PlyCount "120"]
[EventDate "2021.11.08"]
[EventType "team-tourn"]
[EventCountry "SLO"]
[SourceTitle "playchess.com"]
[Source "ChessBase"]
[SourceQuality "1"]
[WhiteTeam "Iceland"]
[BlackTeam "England"]
[WhiteTeamCountry "ISL"]
[BlackTeamCountry "ENG"]
[TimeControl "40/5400+30:1800+30"]

1. e4 {[%emt 0:20:04]} e5 2. Nf3 {[%emt 0:00:30]} Nc6 3. Bc4 {[%emt 0:00:30]}
Bc5 4. d3 {[%emt 0:00:30]} Nf6 5. h3 {[%emt 0:00:30]} d6 6. c3 {[%emt 0:00:30]}
a6 7. a4 {[%emt 0:00:30]} h6 8. O-O {[%emt 0:00:30]} Ba7 9. a5 {[%emt 0:00:30]}
O-O {[%emt 0:17:50]} 10. Nbd2 {[%emt 0:00:30]} Be6 {[%emt 0:00:30]} 11. Re1 {
[%emt 0:00:30]} Re8 {[%emt 0:00:30]} 12. Bxe6 {[%emt 0:00:30]} Rxe6 {[%emt 0:
00:30]} 13. Nf1 {[%emt 0:00:30]} d5 {[%emt 0:00:30]} 14. Qe2 {[%emt 0:00:30]}
Kh7 {[%emt 0:00:30]} 15. Ng3 {[%emt 0:00:30]} g6 {[%emt 0:00:30]} 16. Qd2 {
[%emt 0:00:30]} Ng8 {[%emt 0:00:30]} 17. Ra4 {[%emt 0:00:30]} d4 {[%emt 0:00:
30]} 18. c4 {[%emt 0:00:30]} Bc5 {[%emt 0:00:30]} 19. b4 {[%emt 0:00:30]} Bf8 {
[%emt 0:00:30]} 20. b5 {[%emt 0:00:30]} Na7 {[%emt 0:00:30]} 21. bxa6 {[%emt 0:
00:30]} Rxa6 {[%emt 0:00:30]} 22. Qb2 {[%emt 0:00:30]} b6 {[%emt 0:00:30]} 23.
axb6 {[%emt 0:00:30]} Rxa4 {[%emt 0:00:30]} 24. bxa7 {[%emt 0:00:30]} Qe8 {
[%emt 0:00:30]} 25. Qb3 {[%emt 0:00:30]} R4xa7 {[%emt 0:00:30]} 26. h4 {
[%emt 0:00:30]} Nf6 {[%emt 0:00:30]} 27. h5 {[%emt 0:00:30]} Ng4 {[%emt 0:00:
30]} 28. Qd1 {[%emt 0:00:30]} Qe6 {[%emt 0:00:30]} 29. Nh4 {[%emt 0:00:30]} Ra2
{[%emt 0:00:30]} 30. Re2 {[%emt 0:00:30]} Rxe2 {[%emt 0:00:30]} 31. Nxe2 {
[%emt 0:00:30]} Qf6 {[%emt 0:00:30]} 32. Nf3 {[%emt 0:00:30]} Ra1 {[%emt 0:00:
30]} 33. hxg6+ {[%emt 0:00:30]} fxg6 {[%emt 0:00:30]} 34. Qb3 {[%emt 0:00:30]}
Qb6 {[%emt 0:00:30]} 35. Qc2 {[%emt 0:00:30]} Ba3 {[%emt 0:00:30]} 36. Qa4 {
[%emt 0:00:30]} Qd6 {[%emt 0:00:30]} 37. c5 {[%emt 0:00:30]} Qxc5 {[%emt 0:00:
30]} 38. Qd7+ {[%emt 0:00:30]} Qe7 {[%emt 0:00:30]} 39. Qxg4 {[%emt 0:00:30]}
Bxc1 {[%emt 0:00:30]} 40. Kh2 {[%emt 0:00:30]} Ba3 {[%emt 0:00:30]} 41. Ng3 {
[%emt 0:30:30]} Bd6 {[%emt 0:30:30]} 42. Nh4 {[%emt 0:00:30]} Qf7 {[%emt 0:00:
30]} 43. Nf3 {[%emt 0:00:30]} Ra8 {[%emt 0:00:30]} 44. Qh3 {[%emt 0:00:30]} Kg7
{[%emt 0:00:30]} 45. Qg4 {[%emt 0:00:30]} Kh7 {[%emt 0:00:30]} 46. Qh3 {
[%emt 0:00:30]} Qe7 {[%emt 0:00:30]} 47. Qg4 {[%emt 0:00:30]} Rf8 {[%emt 0:00:
30]} 48. Kg1 {[%emt 0:00:30]} Re8 {[%emt 0:00:30]} 49. Nd2 {[%emt 0:00:30]} Qe6
{[%emt 0:00:30]} 50. Qd1 {[%emt 0:00:30]} Bf8 {[%emt 0:00:30]} 51. Qa4 {
[%emt 0:00:30]} Bg7 {[%emt 0:00:30]} 52. Qa7 {[%emt 0:00:30]} Qb6 {[%emt 0:00:
30]} 53. Qa4 {[%emt 0:00:30]} Rf8 {[%emt 0:00:30]} 54. Qc2 {[%emt 0:00:30]} Qb4
{[%emt 0:00:30]} 55. Ne2 {[%emt 0:00:30]} c5 {[%emt 0:00:30]} 56. Kf1 {[%emt 0:
00:30]} Ra8 {[%emt 0:00:30]} 57. Nb3 {[%emt 0:00:30]} Rb8 {[%emt 0:00:30]} 58.
Nxc5 {[%emt 0:00:30]} Rc8 {[%emt 0:00:30]} 59. Na6 {[%emt 0:00:30]} Rxc2 {
[%emt 0:00:30]} 60. Nxb4 {[%emt 0:00:30]} Rb2 {[%emt 0:00:30]} 0-1

[Event "23rd ETCC Women 2021"]
[Site "Catez"]
[Date "2021.11.19"]
[Round "7.60"]
[White "Varney, Zoe"]
[Black "Hauksdottir, Hrund"]
[Result "1-0"]
[ECO "C22"]
[WhiteElo "1955"]
[BlackElo "1731"]
[Annotator "NA"]
[PlyCount "57"]
[EventDate "2021.11.08"]
[EventType "team-tourn"]
[EventCountry "SLO"]
[SourceTitle "playchess.com"]
[Source "ChessBase"]
[SourceQuality "1"]
[WhiteTeam "England"]
[BlackTeam "Iceland"]
[WhiteTeamCountry "ENG"]
[BlackTeamCountry "ISL"]
[TimeControl "40/5400+30:1800+30"]

1. e4 {[%emt 0:00:03]} e5 {[%emt 0:00:11]} 2. d4 {[%emt 0:00:05]} exd4 {
[%emt 0:00:23]} 3. Qxd4 {[%emt 0:00:06]} Nc6 {[%emt 0:00:32]} 4. Qe3 {[%emt 0:
00:07]} Nf6 {[%emt 0:01:00]} 5. Nc3 {[%emt 0:00:11]} Bb4 {[%emt 0:01:49]} 6.
Bd2 {[%emt 0:00:08]} O-O {[%emt 0:03:00]} 7. O-O-O {[%emt 0:00:07]} Qe7 {
[%emt 0:07:29]} 8. f3 {[%emt 0:10:18]} d6 {[%emt 0:04:51]} 9. g4 {[%emt 0:06:
34]} a5 {[%emt 0:24:03]} 10. g5 {[%emt 0:13:53]} Nd7 {[%emt 0:06:44]} 11. Nd5 {
[%emt 0:07:49]} Qd8 {[%emt 0:06:44]} 12. f4 {[%emt 0:03:07]} Bxd2+ {[%emt 0:04:
46]} 13. Rxd2 {[%emt 0:02:24]} Nb4 {[%emt 0:01:13]} 14. Nc3 {[%emt 0:03:55]}
Nb6 {[%emt 0:03:14]} 15. f5 {[%emt 0:05:45]} Re8 {[%emt 0:15:46]} 16. Qf4 {
[%emt 0:05:38]} Qe7 {[%emt 0:02:48]} 17. Nf3 {[%emt 0:03:44]} f6 {[%emt 0:02:
09]} 18. h4 {[%emt 0:03:43]} Bd7 {[%emt 0:01:00]} 19. Rg2 {[%emt 0:14:23]} Kh8
{[%emt 0:04:16]} 20. h5 {[%emt 0:05:05]} fxg5 {[%emt 0:03:08]} 21. Rxg5 {
[%emt 0:04:57]} h6 {[%emt 0:00:39]} 22. Rg6 {[%emt 0:01:26]} Rf8 {[%emt 0:00:
51]} 23. Nh4 {[%emt 0:03:28]} Be8 {[%emt 0:01:18]} 24. Rxh6+ {[%emt 0:01:30]}
gxh6 {[%emt 0:01:42]} 25. Qxh6+ {[%emt 0:00:09]} Qh7 {[%emt 0:00:19]} 26. Qxf8+
{[%emt 0:00:08]} Qg8 {[%emt 0:00:12]} 27. Qh6+ {[%emt 0:03:54]} Qh7 {[%emt 0:
00:08]} 28. Ng6+ {[%emt 0:00:51]} Kg8 {[%emt 0:01:48]} 29. Qf8# {[%emt 0:00:15]
} 1-0

[Event "23rd ETCC Women 2021"]
[Site "Catez"]
[Date "2021.11.20"]
[Round "8.1"]
[White "Muzychuk, Anna"]
[Black "Goryachkina, Aleksandra"]
[Result "1/2-1/2"]
[ECO "C67"]
[WhiteElo "2533"]
[BlackElo "2604"]
[Annotator "RC"]
[PlyCount "89"]
[EventDate "2021.11.08"]
[EventType "team-tourn"]
[EventCountry "SLO"]
[SourceTitle "playchess.com"]
[Source "ChessBase"]
[SourceQuality "1"]
[WhiteTeam "Ukraine"]
[BlackTeam "Russia"]
[WhiteTeamCountry "UKR"]
[BlackTeamCountry "RUS"]
[TimeControl "40/5400+30:1800+30"]

1. e4 {[%emt 0:00:03]} e5 {[%emt 0:00:21]} 2. Nf3 {[%emt 0:00:09]} Nc6 {
[%emt 0:00:07]} 3. Bb5 {[%emt 0:00:11]} Nf6 {[%emt 0:00:17]} 4. O-O {[%emt 0:
00:27]} Nxe4 {[%emt 0:00:36]} 5. d4 {[%emt 0:00:17]} Nd6 {[%emt 0:00:23]} 6.
Bxc6 {[%emt 0:00:14]} dxc6 {[%emt 0:00:08]} 7. dxe5 {[%emt 0:00:05]} Nf5 {
[%emt 0:00:07]} 8. Qxd8+ {[%emt 0:00:24]} Kxd8 {[%emt 0:00:07]} 9. h3 {[%emt 0:
00:17]} Ke8 {[%emt 0:04:10]} 10. Nc3 {[%emt 0:00:46]} h5 {[%emt 0:00:39]} 11.
Bf4 {[%emt 0:05:48]} Be7 {[%emt 0:00:21]} 12. Rad1 {[%emt 0:01:12]} Nh4 {
[%emt 0:02:30]} 13. Nd4 {[%emt 0:04:57]} Nf5 {[%emt 0:01:06]} 14. Nf3 {[%emt 0:
03:50]} Nh4 {[%emt 0:00:48]} 15. Nd4 {[%emt 0:00:51]} Nf5 {[%emt 0:00:23]} 16.
Nce2 {[%emt 0:00:51]} g5 {[%emt 0:01:34]} 17. Bh2 {[%emt 0:00:12]} Rh6 {
[%emt 0:01:45]} 18. Nxf5 {[%emt 0:04:22]} Bxf5 {[%emt 0:00:07]} 19. Nd4 {
[%emt 0:00:17]} Bd7 {[%emt 0:05:11]} 20. f4 {[%emt 0:04:53]} gxf4 {[%emt 0:04:
26]} 21. Bxf4 {[%emt 0:00:44]} Rg6 {[%emt 0:02:05]} 22. e6 {[%emt 0:05:54]}
Bxe6 {[%emt 0:06:15]} 23. Nxe6 {[%emt 0:00:22]} fxe6 {[%emt 0:02:13]} 24. Bxc7
{[%emt 0:01:10]} Rc8 {[%emt 0:01:33]} 25. Be5 {[%emt 0:04:11]} Rd8 {[%emt 0:03:
57]} 26. Rxd8+ {[%emt 0:03:58]} Bxd8 {[%emt 0:00:34]} 27. Bd4 {[%emt 0:02:48]}
a6 {[%emt 0:05:48]} 28. Bc5 {[%emt 0:08:44]} Be7 {[%emt 0:00:54]} 29. Bxe7 {
[%emt 0:00:48]} Kxe7 {[%emt 0:00:05]} 30. Rf4 {[%emt 0:00:28]} Rg5 {[%emt 0:00:
45]} 31. Kf2 {[%emt 0:00:31]} Rb5 {[%emt 0:09:53]} 32. b3 {[%emt 0:01:18]} Ra5
{[%emt 0:03:22]} 33. a4 {[%emt 0:00:35]} Rc5 {[%emt 0:01:07]} 34. Rc4 {[%emt 0:
05:07]} Rf5+ {[%emt 0:05:15]} 35. Ke3 {[%emt 0:03:32]} Re5+ {[%emt 0:05:35]}
36. Re4 {[%emt 0:03:42]} Rg5 {[%emt 0:08:39]} 37. g4 {[%emt 0:00:44]} hxg4 {
[%emt 0:00:36]} 38. hxg4 {[%emt 0:06:24]} Kf6 {[%emt 0:01:22]} 39. Rf4+ {
[%emt 0:03:55]} Ke7 {[%emt 0:03:20]} 40. Kf3 {[%emt 0:02:51]} e5 {[%emt 0:04:
06]} 41. Re4 {[%emt 0:34:44]} Ke6 {[%emt 0:31:51]} 42. Re2 {[%emt 0:07:24]} Rg7
{[%emt 0:02:23]} 43. Rg2 {[%emt 0:03:09]} a5 {[%emt 0:05:34]} 44. Ke4 {[%emt 0:
03:18]} Rg5 {[%emt 0:00:54]} 45. Kf3 {[%emt 0:05:39]} 1/2-1/2